[Event "*** Titled Tuesday Blitz"]
[Site "Chess.com"]
[Date "2019.01.01"]
[Round "2"]
[White "ElenaPershina"]
[Black "GremioPrudente"]
[Result "1/2-1/2"]
[WhiteElo "1907"]
[BlackElo "2016"]
[TimeControl "180+2"]
[EndTime "13:21:31 PST"]
[Termination "Game drawn by agreement"]

1. e4 {[%clk 0:03:01.8]} 1... e6 {[%clk 0:03:00.6]} 2. c4 {[%clk 0:03:02.2]}
2... d5 {[%clk 0:02:58.6]} 3. exd5 {[%clk 0:03:03.1]} 3... exd5 {[%clk
0:02:59.7]} 4. cxd5 {[%clk 0:03:04.3]} 4... Nf6 {[%clk 0:03:01.2]} 5. Nc3 {[%clk
0:03:05]} 5... Nxd5 {[%clk 0:03:00.9]} 6. d4 {[%clk 0:03:06.6]} 6... Bb4 {[%clk
0:02:56]} 7. Bd2 {[%clk 0:02:54.9]} 7... O-O {[%clk 0:02:53.5]} 8. Nf3 {[%clk
0:02:54.7]} 8... Bg4 {[%clk 0:02:45.3]} 9. Be2 {[%clk 0:02:43.2]} 9... Nc6
{[%clk 0:02:43.4]} 10. Nxd5 {[%clk 0:02:31.9]} 10... Bxd2+ {[%clk 0:02:26]} 11.
Qxd2 {[%clk 0:02:22.5]} 11... Qxd5 {[%clk 0:02:26.7]} 12. Rd1 {[%clk 0:02:17.9]}
12... Bxf3 {[%clk 0:02:24.7]} 13. Bxf3 {[%clk 0:02:18.8]} 13... Rfe8+ {[%clk
0:02:24.1]} 14. Kf1 {[%clk 0:02:12.9]} 14... Qxa2 {[%clk 0:02:22.9]} 15. Bxc6
{[%clk 0:02:02.2]} 15... bxc6 {[%clk 0:02:23]} 16. Qc3 {[%clk 0:02:02.2]} 16...
Qd5 {[%clk 0:02:18.5]} 17. Kg1 {[%clk 0:01:58.4]} 17... Rad8 {[%clk 0:02:13.9]}
18. h3 {[%clk 0:01:57.5]} 18... Re4 {[%clk 0:02:04.8]} 19. Kh2 {[%clk
0:01:48.1]} 19... Rxd4 {[%clk 0:01:38.2]} 20. Rxd4 {[%clk 0:01:38.8]} 20... Qxd4
{[%clk 0:01:39.1]} 21. Qg3 {[%clk 0:01:21.1]} 21... Qd6 {[%clk 0:01:32.5]} 22.
Rc1 {[%clk 0:01:21.4]} 22... Qxg3+ {[%clk 0:01:29.6]} 23. Kxg3 {[%clk
0:01:22.5]} 23... Rd6 {[%clk 0:01:31.5]} 24. Rc5 {[%clk 0:01:21.1]} 24... Kf8
{[%clk 0:01:25.8]} 25. Ra5 {[%clk 0:01:21.7]} 25... Ke7 {[%clk 0:01:20.5]} 26.
Rxa7 {[%clk 0:01:22.5]} 26... Kd7 {[%clk 0:01:21]} 27. Rb7 {[%clk 0:01:18.8]}
27... c5 {[%clk 0:01:16.9]} 28. Rb8 {[%clk 0:01:18.7]} 28... Rb6 {[%clk
0:01:15.2]} 29. Rg8 {[%clk 0:01:15.2]} 29... g6 {[%clk 0:01:11.5]} 30. Rg7
{[%clk 0:01:13.9]} 30... Ke7 {[%clk 0:01:08]} 31. Rxh7 {[%clk 0:01:14.2]} 31...
Rxb2 {[%clk 0:01:09]} 32. Rh8 {[%clk 0:01:14.9]} 32... c4 {[%clk 0:01:09.9]} 33.
Rc8 {[%clk 0:01:13.7]} 33... Kd7 {[%clk 0:01:10.3]} 34. Rf8 {[%clk 0:01:14]}
34... f5 {[%clk 0:01:02]} 35. Ra8 {[%clk 0:01:05.9]} 35... c3 {[%clk 0:00:59.5]}
36. Ra1 {[%clk 0:01:06]} 36... Kc6 {[%clk 0:00:54.5]} 37. Rc1 {[%clk 0:01:06.6]}
37... c2 {[%clk 0:00:52.2]} 38. Kf4 {[%clk 0:01:07.1]} 38... Kd5 {[%clk
0:00:52.6]} 39. Ke3 {[%clk 0:01:04.1]} 39... Ke5 {[%clk 0:00:46.2]} 40. Kd3
{[%clk 0:01:02.8]} 40... f4 {[%clk 0:00:35.9]} 41. Kc3 {[%clk 0:01:01.9]} 41...
Ra2 {[%clk 0:00:34.9]} 42. Kb3 {[%clk 0:01:00.8]} 42... Ra6 {[%clk 0:00:27.4]}
43. Rxc2 {[%clk 0:01:00.5]} 43... Kd6 {[%clk 0:00:24.9]} 44. Rc4 {[%clk
0:00:58.5]} 44... g5 {[%clk 0:00:25.3]} 1/2-1/2

[Event "*** Titled Tuesday Blitz"]
[Site "Chess.com"]
[Date "2019.01.01"]
[Round "2"]
[White "riconaipe"]
[Black "MateSchmate"]
[Result "1-0"]
[WhiteElo "2413"]
[BlackElo "2483"]
[TimeControl "180+2"]
[EndTime "13:21:36 PST"]
[Termination "riconaipe won by checkmate"]

1. d4 {[%clk 0:03:01.9]} 1... Nf6 {[%clk 0:02:59.8]} 2. c4 {[%clk 0:02:55.6]}
2... e6 {[%clk 0:03:00.5]} 3. Nc3 {[%clk 0:02:56.3]} 3... Bb4 {[%clk 0:03:01.2]}
4. Qc2 {[%clk 0:02:57.8]} 4... d5 {[%clk 0:03:02.1]} 5. cxd5 {[%clk 0:02:51.1]}
5... Qxd5 {[%clk 0:03:02.8]} 6. Nf3 {[%clk 0:02:52.4]} 6... Qf5 {[%clk
0:03:03.7]} 7. Qb3 {[%clk 0:02:52.7]} 7... Bxc3+ {[%clk 0:02:59]} 8. Qxc3 {[%clk
0:02:46.5]} 8... Nd5 {[%clk 0:02:53.8]} 9. Qb3 {[%clk 0:02:44.7]} 9... O-O
{[%clk 0:02:49.3]} 10. g3 {[%clk 0:02:44.5]} 10... b6 {[%clk 0:02:49]} 11. Bg2
{[%clk 0:02:45.6]} 11... Bb7 {[%clk 0:02:50.2]} 12. O-O {[%clk 0:02:46.4]} 12...
Nd7 {[%clk 0:02:50.9]} 13. Bd2 {[%clk 0:02:34.2]} 13... N7f6 {[%clk 0:02:51.5]}
14. Rac1 {[%clk 0:02:19.4]} 14... Rac8 {[%clk 0:02:49.7]} 15. Ne5 {[%clk
0:02:07.9]} 15... Ne4 {[%clk 0:02:43.5]} 16. Be3 {[%clk 0:02:06.6]} 16... Nd6
{[%clk 0:02:38.8]} 17. f3 {[%clk 0:02:02.6]} 17... Rfd8 {[%clk 0:02:34.1]} 18.
Bf2 {[%clk 0:02:03.3]} 18... f6 {[%clk 0:02:29.4]} 19. e4 {[%clk 0:02:03.8]}
19... Qh5 {[%clk 0:02:27.1]} 20. Nc6 {[%clk 0:02:00.1]} 20... Bxc6 {[%clk
0:02:25.3]} 21. Rxc6 {[%clk 0:01:55.1]} 21... Ne7 {[%clk 0:02:26.7]} 22. Qxe6+
{[%clk 0:01:50.4]} 22... Qf7 {[%clk 0:02:27.6]} 23. Qxf7+ {[%clk 0:01:51.4]}
23... Kxf7 {[%clk 0:02:26.6]} 24. Rc2 {[%clk 0:01:51.6]} 24... Nb5 {[%clk
0:02:26.7]} 25. d5 {[%clk 0:01:49.6]} 25... c5 {[%clk 0:02:28.1]} 26. f4 {[%clk
0:01:44.2]} 26... f5 {[%clk 0:02:26.6]} 27. a4 {[%clk 0:01:42.2]} 27... Nd6
{[%clk 0:02:20.5]} 28. e5 {[%clk 0:01:41.4]} 28... Ne4 {[%clk 0:02:22]} 29. d6
{[%clk 0:01:38.6]} 29... Nc6 {[%clk 0:02:20.9]} 30. Bxe4 {[%clk 0:01:36.2]}
30... fxe4 {[%clk 0:02:22.8]} 31. Re1 {[%clk 0:01:36.5]} 31... Ke6 {[%clk
0:02:14]} 32. Rxe4 {[%clk 0:01:35.9]} 32... h5 {[%clk 0:02:15.2]} 33. Rd2 {[%clk
0:01:32.2]} 33... g6 {[%clk 0:02:16]} 34. h3 {[%clk 0:01:32.7]} 34... Rf8 {[%clk
0:02:14.2]} 35. Kg2 {[%clk 0:01:32.6]} 35... Rcd8 {[%clk 0:02:14.1]} 36. Be3
{[%clk 0:01:29.9]} 36... Nb4 {[%clk 0:02:13.1]} 37. Bf2 {[%clk 0:01:15.5]} 37...
Nc6 {[%clk 0:02:12.2]} 38. Re1 {[%clk 0:01:16.5]} 38... h4 {[%clk 0:02:10]} 39.
Red1 {[%clk 0:01:16.9]} 39... hxg3 {[%clk 0:02:10.9]} 40. Kxg3 {[%clk 0:01:17]}
40... Rd7 {[%clk 0:02:08.2]} 41. Be3 {[%clk 0:01:08.9]} 41... Rdf7 {[%clk
0:02:09.1]} 42. d7 {[%clk 0:01:08.1]} 42... Nd8 {[%clk 0:01:44.1]} 43. Rd6+
{[%clk 0:01:07.4]} 43... Ke7 {[%clk 0:01:45.1]} 44. Kg4 {[%clk 0:00:59.6]} 44...
Nb7 {[%clk 0:01:41.8]} 45. Rxg6 {[%clk 0:00:59.4]} 45... Rd8 {[%clk 0:01:42.9]}
46. e6 {[%clk 0:01:00]} 46... Rf6 {[%clk 0:01:42.1]} 47. Rxf6 {[%clk 0:00:59.9]}
47... Kxf6 {[%clk 0:01:44]} 48. f5 {[%clk 0:01:01.3]} 48... Rg8+ {[%clk
0:01:45.2]} 49. Kh5 {[%clk 0:01:00.4]} 49... Nd8 {[%clk 0:01:37.6]} 50. h4
{[%clk 0:00:59.3]} 50... Kxf5 {[%clk 0:01:28.4]} 51. e7 {[%clk 0:00:58.3]} 51...
Rh8+ {[%clk 0:01:28.2]} 52. Bh6 {[%clk 0:00:57.7]} 52... Nf7 {[%clk 0:01:27.7]}
53. Rf1+ {[%clk 0:00:58.9]} 53... Ke6 {[%clk 0:01:28.5]} 54. Rxf7 {[%clk
0:00:59.7]} 54... Kxd7 {[%clk 0:01:30]} 55. Rf8 {[%clk 0:00:59.3]} 55... Rh7
{[%clk 0:01:28.6]} 56. e8=Q+ {[%clk 0:00:59.5]} 56... Kc7 {[%clk 0:01:30.5]} 57.
Qe5+ {[%clk 0:00:58.7]} 57... Kb7 {[%clk 0:01:31]} 58. Qe4+ {[%clk 0:01:00.2]}
58... Ka6 {[%clk 0:01:32.5]} 59. Qxh7 {[%clk 0:01:01.5]} 59... Ka5 {[%clk
0:01:34]} 60. Qxa7+ {[%clk 0:00:58.7]} 60... Kb4 {[%clk 0:01:35.2]} 61. Qxb6+
{[%clk 0:01:00.1]} 61... Kxa4 {[%clk 0:01:36.2]} 62. Qxc5 {[%clk 0:01:00.1]}
62... Kb3 {[%clk 0:01:35.9]} 63. Qc3+ {[%clk 0:00:59.8]} 63... Ka2 {[%clk
0:01:36.5]} 64. b4 {[%clk 0:00:59.8]} 64... Kb1 {[%clk 0:01:36.6]} 65. b5 {[%clk
0:01:01.4]} 65... Ka2 {[%clk 0:01:38]} 66. b6 {[%clk 0:01:02.8]} 66... Kb1
{[%clk 0:01:39.5]} 67. b7 {[%clk 0:01:04.3]} 67... Ka2 {[%clk 0:01:41.1]} 68.
Ra8+ {[%clk 0:01:04]} 68... Kb1 {[%clk 0:01:42.2]} 69. b8=R# {[%clk 0:01:03.9]}
1-0

[Event "*** Titled Tuesday Blitz"]
[Site "Chess.com"]
[Date "2019.01.01"]
[Round "2"]
[White "Airquake"]
[Black "essequamvideris"]
[Result "0-1"]
[WhiteElo "2568"]
[BlackElo "2353"]
[TimeControl "180+2"]
[EndTime "13:21:37 PST"]
[Termination "essequamvideris won by checkmate"]

1. g3 {[%clk 0:03:01]} 1... Nf6 {[%clk 0:02:58.8]} 2. Bg2 {[%clk 0:03:02.9]}
2... g6 {[%clk 0:03:00.5]} 3. Nf3 {[%clk 0:03:04.3]} 3... Bg7 {[%clk 0:03:02.4]}
4. O-O {[%clk 0:03:06.2]} 4... O-O {[%clk 0:03:03.8]} 5. d4 {[%clk 0:03:08.1]}
5... c5 {[%clk 0:03:04.9]} 6. c4 {[%clk 0:03:08.2]} 6... cxd4 {[%clk 0:03:06.8]}
7. Nxd4 {[%clk 0:03:08.9]} 7... Nc6 {[%clk 0:03:08.5]} 8. Nc3 {[%clk 0:03:10.5]}
8... Nxd4 {[%clk 0:03:08.1]} 9. Qxd4 {[%clk 0:03:11.3]} 9... d6 {[%clk 0:03:10]}
10. e4 {[%clk 0:03:11.6]} 10... Be6 {[%clk 0:03:11.3]} 11. Qd3 {[%clk 0:03:06]}
11... Rc8 {[%clk 0:03:10]} 12. b3 {[%clk 0:03:07.3]} 12... Qa5 {[%clk 0:03:11]}
13. Bb2 {[%clk 0:03:07.2]} 13... Qh5 {[%clk 0:03:11.6]} 14. f4 {[%clk
0:03:03.5]} 14... Ng4 {[%clk 0:03:07.9]} 15. h3 {[%clk 0:03:04.5]} 15... Qc5+
{[%clk 0:03:08.2]} 16. Kh1 {[%clk 0:02:55]} 16... Nf2+ {[%clk 0:03:09.2]} 17.
Rxf2 {[%clk 0:02:56.4]} 17... Qxf2 {[%clk 0:03:10.8]} 18. Nd1 {[%clk 0:02:57.8]}
18... Qe1+ {[%clk 0:02:58.7]} 19. Qf1 {[%clk 0:02:58.8]} 19... Qxf1+ {[%clk
0:02:52.8]} 20. Bxf1 {[%clk 0:03:00.7]} 20... b5 {[%clk 0:02:30.4]} 21. Bxg7
{[%clk 0:02:57.5]} 21... Kxg7 {[%clk 0:02:32.3]} 22. cxb5 {[%clk 0:02:59.1]}
22... Rc2 {[%clk 0:02:32.2]} 23. a4 {[%clk 0:02:28.9]} 23... Bxb3 {[%clk
0:02:29.9]} 24. a5 {[%clk 0:02:30.2]} 24... Rb8 {[%clk 0:02:18.3]} 25. Rb1
{[%clk 0:02:30.2]} 25... Ba2 {[%clk 0:02:08.4]} 26. Ra1 {[%clk 0:02:31.2]} 26...
d5 {[%clk 0:01:49.5]} 27. Ne3 {[%clk 0:02:27.9]} 27... Rc3 {[%clk 0:01:42.8]}
28. Nxd5 {[%clk 0:01:11.1]} 28... Bxd5 {[%clk 0:01:40.6]} 29. exd5 {[%clk
0:01:13]} 29... Rxg3 {[%clk 0:01:35.8]} 30. b6 {[%clk 0:00:54.2]} 30... axb6
{[%clk 0:01:33.8]} 31. a6 {[%clk 0:00:55.5]} 31... Ra8 {[%clk 0:01:29.4]} 32. a7
{[%clk 0:00:56.7]} 32... Rc3 {[%clk 0:01:01]} 33. d6 {[%clk 0:00:57.6]} 33...
exd6 {[%clk 0:00:57]} 34. Bg2 {[%clk 0:00:58.7]} 34... Rcc8 {[%clk 0:00:48]} 35.
Bb7 {[%clk 0:00:59.3]} 35... Rxa7 {[%clk 0:00:42.5]} 36. Rxa7 {[%clk 0:00:58.6]}
36... Rc7 {[%clk 0:00:43.7]} 37. Kg2 {[%clk 0:00:59.7]} 37... Kf6 {[%clk
0:00:42]} 38. Kf3 {[%clk 0:01:00.7]} 38... d5 {[%clk 0:00:41.4]} 39. Ke3 {[%clk
0:00:56.8]} 39... Ke7 {[%clk 0:00:41.5]} 40. Kd4 {[%clk 0:00:49.6]} 40... Kd6
{[%clk 0:00:42.3]} 41. h4 {[%clk 0:00:49.4]} 41... f5 {[%clk 0:00:40.9]} 42. Kd3
{[%clk 0:00:41.8]} 42... Kc5 {[%clk 0:00:34.7]} 43. h5 {[%clk 0:00:42.4]} 43...
gxh5 {[%clk 0:00:34.6]} 44. Kc3 {[%clk 0:00:41.8]} 44... h4 {[%clk 0:00:35]} 45.
Kb3 {[%clk 0:00:41.4]} 45... h3 {[%clk 0:00:35.6]} 46. Ra5+ {[%clk 0:00:34.4]}
46... bxa5 {[%clk 0:00:36]} 47. Ka4 {[%clk 0:00:36.3]} 47... Rxb7 {[%clk
0:00:36.1]} 48. Kxa5 {[%clk 0:00:38.2]} 48... Ra7# {[%clk 0:00:36.7]} 0-1

[Event "*** Titled Tuesday Blitz"]
[Site "Chess.com"]
[Date "2019.01.01"]
[Round "2"]
[White "Firouzja2003"]
[Black "vladimirdamjanovic"]
[Result "1-0"]
[WhiteElo "2995"]
[BlackElo "2602"]
[TimeControl "180+2"]
[EndTime "13:21:44 PST"]
[Termination "Firouzja2003 won by resignation"]

1. d4 {[%clk 0:03:01.9]} 1... Nf6 {[%clk 0:03:00.6]} 2. c4 {[%clk 0:03:03.8]}
2... c5 {[%clk 0:03:01.7]} 3. g3 {[%clk 0:03:05.7]} 3... cxd4 {[%clk 0:03:02.3]}
4. Qxd4 {[%clk 0:03:05.2]} 4... Nc6 {[%clk 0:03:02.6]} 5. Qd1 {[%clk 0:03:06.8]}
5... d5 {[%clk 0:02:58.4]} 6. Bg2 {[%clk 0:02:59.3]} 6... dxc4 {[%clk
0:02:52.5]} 7. Qa4 {[%clk 0:03:00]} 7... Qa5+ {[%clk 0:02:48.1]} 8. Qxa5 {[%clk
0:03:01]} 8... Nxa5 {[%clk 0:02:50]} 9. Bd2 {[%clk 0:03:02.5]} 9... Nc6 {[%clk
0:02:50]} 10. Na3 {[%clk 0:03:03.4]} 10... e6 {[%clk 0:02:36.3]} 11. Nxc4 {[%clk
0:02:54.9]} 11... Bd7 {[%clk 0:02:36.7]} 12. Nf3 {[%clk 0:02:53.9]} 12... Ne4
{[%clk 0:02:09.8]} 13. Bf4 {[%clk 0:02:46.8]} 13... Bb4+ {[%clk 0:02:07.3]} 14.
Nfd2 {[%clk 0:02:48]} 14... Nxd2 {[%clk 0:02:03.4]} 15. Bxd2 {[%clk 0:02:49.1]}
15... Bxd2+ {[%clk 0:02:00.8]} 16. Kxd2 {[%clk 0:02:51]} 16... Ke7 {[%clk
0:02:01.2]} 17. Rac1 {[%clk 0:02:51.8]} 17... Rhd8 {[%clk 0:02:00.3]} 18. Ke3
{[%clk 0:02:52.7]} 18... Rac8 {[%clk 0:01:54.7]} 19. Rhd1 {[%clk 0:02:53.4]}
19... Be8 {[%clk 0:01:52.2]} 20. Rxd8 {[%clk 0:02:47.7]} 20... Nxd8 {[%clk
0:01:43]} 21. Kd2 {[%clk 0:02:47.3]} 21... Bb5 {[%clk 0:01:19.2]} 22. b3 {[%clk
0:02:32.5]} 22... Bxc4 {[%clk 0:01:10.2]} 23. bxc4 {[%clk 0:02:34.4]} 23... b6
{[%clk 0:01:10.7]} 24. g4 {[%clk 0:02:34.1]} 24... Rc5 {[%clk 0:01:11.2]} 25.
Be4 {[%clk 0:02:34.9]} 25... g6 {[%clk 0:01:11.5]} 26. f4 {[%clk 0:02:27.9]}
26... f5 {[%clk 0:01:12.1]} 27. Bf3 {[%clk 0:02:27.3]} 27... Nf7 {[%clk
0:01:12.7]} 28. h3 {[%clk 0:02:28.4]} 28... Nd6 {[%clk 0:01:13.5]} 29. Kd3
{[%clk 0:02:29.5]} 29... b5 {[%clk 0:01:11.7]} 30. Rb1 {[%clk 0:02:27]} 30...
bxc4+ {[%clk 0:00:56.4]} 31. Kd4 {[%clk 0:02:28.2]} 31... Rc8 {[%clk 0:00:51.3]}
32. Kc3 {[%clk 0:02:28.7]} 32... Rc7 {[%clk 0:00:38.5]} 33. Rb8 {[%clk
0:02:27.9]} 33... Rc8 {[%clk 0:00:36]} 34. Rxc8 {[%clk 0:02:23.8]} 34... Nxc8
{[%clk 0:00:37.9]} 35. Kxc4 {[%clk 0:02:25.7]} 35... Kd7 {[%clk 0:00:32.8]} 36.
Kb5 {[%clk 0:02:18.4]} 36... Kc7 {[%clk 0:00:33.8]} 37. Ka6 {[%clk 0:02:19.5]}
37... Kb8 {[%clk 0:00:34.9]} 38. Bc6 {[%clk 0:02:20.4]} 38... Kc7 {[%clk
0:00:26.1]} 39. Ba4 {[%clk 0:02:13.3]} 39... Nb6 {[%clk 0:00:17.8]} 40. Bb3
{[%clk 0:02:14.1]} 40... Nd7 {[%clk 0:00:14.2]} 41. Kxa7 {[%clk 0:02:10.7]}
41... Nc5 {[%clk 0:00:15.6]} 42. Bc4 {[%clk 0:02:10.2]} 42... Kd6 {[%clk
0:00:15.6]} 43. g5 {[%clk 0:02:07.4]} 43... Na4 {[%clk 0:00:12.6]} 44. Kb7
{[%clk 0:02:05.1]} 44... Nc5+ {[%clk 0:00:13.5]} 45. Kb6 {[%clk 0:02:05.9]}
45... Na4+ {[%clk 0:00:14.7]} 46. Kb5 {[%clk 0:02:07.2]} 46... Nc3+ {[%clk
0:00:15.6]} 47. Kb4 {[%clk 0:02:08.7]} 47... Ne4 {[%clk 0:00:11.7]} 48. a4
{[%clk 0:02:10.2]} 48... Nc5 {[%clk 0:00:08.8]} 49. a5 {[%clk 0:02:11]} 49...
Nd7 {[%clk 0:00:07.3]} 50. Kb5 {[%clk 0:02:10.1]} 50... Kc7 {[%clk 0:00:08.2]}
51. Bxe6 {[%clk 0:02:10.8]} 51... Nf8 {[%clk 0:00:08.7]} 52. Bd5 {[%clk
0:02:11.8]} 52... Kb8 {[%clk 0:00:09.4]} 53. Bc6 {[%clk 0:02:09.1]} 53... Ka7
{[%clk 0:00:11.3]} 54. Bd5 {[%clk 0:02:08.6]} 54... Nd7 {[%clk 0:00:11.4]} 55.
Bg8 {[%clk 0:02:09.8]} 55... Nf8 {[%clk 0:00:13.3]} 56. e3 {[%clk 0:02:10.9]}
56... Kb7 {[%clk 0:00:14.1]} 57. a6+ {[%clk 0:02:11.7]} 57... Ka7 {[%clk
0:00:15.1]} 58. h4 {[%clk 0:02:13.1]} 58... Kb8 {[%clk 0:00:16.2]} 59. Kb6
{[%clk 0:02:14.1]} 59... Ka8 {[%clk 0:00:17.1]} 60. Bd5+ {[%clk 0:02:14.2]}
60... Kb8 {[%clk 0:00:18.1]} 61. a7+ {[%clk 0:02:15.4]} 61... Kc8 {[%clk
0:00:20]} 62. a8=Q+ {[%clk 0:02:17.3]} 62... Kd7 {[%clk 0:00:21.9]} 63. Qxf8
{[%clk 0:02:19.2]} 63... h5 {[%clk 0:00:22.8]} 64. gxh6 {[%clk 0:02:19.3]} 64...
g5 {[%clk 0:00:23.6]} 65. fxg5 {[%clk 0:02:20.7]} 65... f4 {[%clk 0:00:24.6]}
66. h7 {[%clk 0:02:21.5]} 66... fxe3 {[%clk 0:00:25.3]} 67. h8=Q {[%clk
0:02:22.9]} 1-0

[Event "*** Titled Tuesday Blitz"]
[Site "Chess.com"]
[Date "2019.01.01"]
[Round "2"]
[White "Samuray111"]
[Black "TigranLPetrosyan"]
[Result "0-1"]
[WhiteElo "2629"]
[BlackElo "2816"]
[TimeControl "180+2"]
[EndTime "13:21:45 PST"]
[Termination "TigranLPetrosyan won by resignation"]

1. e4 {[%clk 0:03:00.6]} 1... g6 {[%clk 0:02:55.5]} 2. d4 {[%clk 0:03:01.2]}
2... Bg7 {[%clk 0:02:55.5]} 3. Nc3 {[%clk 0:03:01.9]} 3... a6 {[%clk 0:02:57]}
4. f4 {[%clk 0:02:56.4]} 4... b5 {[%clk 0:02:57.1]} 5. Nf3 {[%clk 0:02:56.4]}
5... d6 {[%clk 0:02:58.6]} 6. Bd3 {[%clk 0:02:54.1]} 6... Nd7 {[%clk 0:02:59.4]}
7. e5 {[%clk 0:02:50.9]} 7... c5 {[%clk 0:03:00.2]} 8. Be4 {[%clk 0:02:30]} 8...
Rb8 {[%clk 0:03:00]} 9. Be3 {[%clk 0:02:31]} 9... b4 {[%clk 0:02:47.6]} 10. Ne2
{[%clk 0:02:27.6]} 10... Nh6 {[%clk 0:02:27.4]} 11. c3 {[%clk 0:02:17.8]} 11...
bxc3 {[%clk 0:02:13.3]} 12. bxc3 {[%clk 0:02:17.7]} 12... O-O {[%clk 0:02:10.8]}
13. h3 {[%clk 0:01:51.5]} 13... cxd4 {[%clk 0:02:09.6]} 14. cxd4 {[%clk
0:01:50.5]} 14... Nf5 {[%clk 0:02:08.9]} 15. Bxf5 {[%clk 0:01:29]} 15... gxf5
{[%clk 0:02:08.8]} 16. O-O {[%clk 0:01:30.5]} 16... Nb6 {[%clk 0:02:03.4]} 17.
Rb1 {[%clk 0:00:58.7]} 17... Be6 {[%clk 0:02:00.8]} 18. Ng3 {[%clk 0:00:47.3]}
18... Nd5 {[%clk 0:01:58.2]} 19. Rxb8 {[%clk 0:00:44.3]} 19... Qxb8 {[%clk
0:01:51.1]} 20. Bd2 {[%clk 0:00:45.1]} 20... Qb2 {[%clk 0:01:33.6]} 21. Kh2
{[%clk 0:00:24.7]} 21... Rc8 {[%clk 0:01:33.5]} 22. Nh4 {[%clk 0:00:20.7]} 22...
Rc2 {[%clk 0:01:30.4]} 23. Ngxf5 {[%clk 0:00:16.8]} 23... Bf8 {[%clk 0:00:52.7]}
24. Qg4+ {[%clk 0:00:16.4]} 24... Kh8 {[%clk 0:00:53.8]} 25. Ba5 {[%clk
0:00:07.7]} 25... Ne3 {[%clk 0:00:50.2]} 26. Nxe3 {[%clk 0:00:03.9]} 26... Bxg4
{[%clk 0:00:50.7]} 27. Nxc2 {[%clk 0:00:05]} 27... Be2 {[%clk 0:00:51.7]} 28.
Rf2 {[%clk 0:00:04.9]} 28... Qxc2 {[%clk 0:00:53]} 29. f5 {[%clk 0:00:05.9]}
29... Bh6 {[%clk 0:00:53]} 30. f6 {[%clk 0:00:06.6]} 30... exf6 {[%clk
0:00:46.9]} 31. exd6 {[%clk 0:00:07.2]} 31... Qa4 {[%clk 0:00:43]} 32. Rxe2
{[%clk 0:00:08]} 32... Qxa5 {[%clk 0:00:29.4]} 33. d7 {[%clk 0:00:05]} 33...
Bf4+ {[%clk 0:00:29.5]} 34. g3 {[%clk 0:00:06.3]} 34... Bc7 {[%clk 0:00:30.5]}
35. Kg2 {[%clk 0:00:03.1]} 35... Qd5+ {[%clk 0:00:29.9]} 36. Kg1 {[%clk
0:00:04.5]} 36... Qxd7 {[%clk 0:00:31.5]} 37. g4 {[%clk 0:00:05.6]} 37... Qxd4+
{[%clk 0:00:32.5]} 0-1

[Event "*** Titled Tuesday Blitz"]
[Site "Chess.com"]
[Date "2019.01.01"]
[Round "2"]
[White "Parhamov"]
[Black "rubhani"]
[Result "1-0"]
[WhiteElo "2911"]
[BlackElo "2574"]
[TimeControl "180+2"]
[EndTime "13:21:49 PST"]
[Termination "Parhamov won by resignation"]

1. e4 {[%clk 0:02:58.2]} 1... c6 {[%clk 0:03:00.7]} 2. d4 {[%clk 0:02:58.9]}
2... d5 {[%clk 0:03:02.6]} 3. Nc3 {[%clk 0:02:59.5]} 3... dxe4 {[%clk
0:03:03.4]} 4. Nxe4 {[%clk 0:03:00.8]} 4... Nd7 {[%clk 0:03:05]} 5. Qe2 {[%clk
0:03:01.1]} 5... e6 {[%clk 0:03:05.6]} 6. g3 {[%clk 0:03:00.6]} 6... Ngf6 {[%clk
0:03:06.7]} 7. Nxf6+ {[%clk 0:02:58.2]} 7... Nxf6 {[%clk 0:03:07.1]} 8. Nf3
{[%clk 0:02:59.7]} 8... Bd6 {[%clk 0:02:16.3]} 9. Bg2 {[%clk 0:03:00.1]} 9...
O-O {[%clk 0:02:17.2]} 10. O-O {[%clk 0:03:01.6]} 10... Qc7 {[%clk 0:02:09.9]}
11. b3 {[%clk 0:03:00.8]} 11... b6 {[%clk 0:02:09.5]} 12. Bb2 {[%clk 0:03:01.5]}
12... Bb7 {[%clk 0:02:10.7]} 13. c4 {[%clk 0:03:02.6]} 13... Rfe8 {[%clk
0:02:05]} 14. Qc2 {[%clk 0:03:00.9]} 14... h6 {[%clk 0:01:50.2]} 15. Rfe1 {[%clk
0:02:58.9]} 15... Rad8 {[%clk 0:01:50.2]} 16. a3 {[%clk 0:02:56.3]} 16... Nd7
{[%clk 0:01:50.4]} 17. b4 {[%clk 0:02:55.5]} 17... c5 {[%clk 0:01:51.7]} 18.
dxc5 {[%clk 0:02:55.9]} 18... bxc5 {[%clk 0:01:52.9]} 19. b5 {[%clk 0:02:57.4]}
19... e5 {[%clk 0:01:53.4]} 20. a4 {[%clk 0:02:55.8]} 20... e4 {[%clk
0:01:47.5]} 21. Nh4 {[%clk 0:02:56.3]} 21... Be5 {[%clk 0:01:42]} 22. Bxe5
{[%clk 0:02:43.6]} 22... Qxe5 {[%clk 0:01:36.1]} 23. Rad1 {[%clk 0:02:43.9]}
23... Nf6 {[%clk 0:01:32.8]} 24. Nf3 {[%clk 0:02:34.8]} 24... Rxd1 {[%clk
0:01:17]} 25. Qxd1 {[%clk 0:02:35.3]} 25... Qc3 {[%clk 0:01:10]} 26. Nh4 {[%clk
0:02:10]} 26... Qxc4 {[%clk 0:01:08.6]} 27. Nf5 {[%clk 0:02:11.1]} 27... Qe6
{[%clk 0:00:44.2]} 28. Bh3 {[%clk 0:01:55.5]} 28... Qe5 {[%clk 0:00:31.1]} 29.
Qd6 {[%clk 0:01:55.5]} 29... Qc3 {[%clk 0:00:24.5]} 30. Re3 {[%clk 0:01:34.3]}
30... Qa1+ {[%clk 0:00:21.3]} 31. Bf1 {[%clk 0:01:35.4]} 31... Qxa4 {[%clk
0:00:22.3]} 32. Nxh6+ {[%clk 0:01:21.9]} 32... gxh6 {[%clk 0:00:18.7]} 33. Qxf6
{[%clk 0:01:23]} 33... Re6 {[%clk 0:00:20]} 34. Qf4 {[%clk 0:01:07.1]} 34... Kg7
{[%clk 0:00:19.2]} 35. Qc7 {[%clk 0:01:07.1]} 35... Bd5 {[%clk 0:00:19.6]} 36.
Qxc5 {[%clk 0:01:08.2]} 36... Qa2 {[%clk 0:00:20.4]} 37. Ra3 {[%clk 0:01:07.5]}
37... Qd2 {[%clk 0:00:19.9]} 38. Qxa7 {[%clk 0:01:05]} 38... Rf6 {[%clk
0:00:19]} 39. Qe3 {[%clk 0:01:03.8]} 39... Qd1 {[%clk 0:00:19.7]} 40. Rc3 {[%clk
0:00:57.6]} 40... Rf3 {[%clk 0:00:18.8]} 41. Rc1 {[%clk 0:00:58.7]} 41... Qa4
{[%clk 0:00:16.7]} 42. Qc5 {[%clk 0:00:58.8]} 42... Be6 {[%clk 0:00:17.2]} 43.
Rc3 {[%clk 0:00:56.4]} 43... Rxc3 {[%clk 0:00:17.7]} 44. Qxc3+ {[%clk
0:00:57.3]} 44... Kg6 {[%clk 0:00:19.6]} 45. Qc1 {[%clk 0:00:52.3]} 45... Qb3
{[%clk 0:00:20.1]} 46. h4 {[%clk 0:00:52]} 46... h5 {[%clk 0:00:21]} 47. Qg5+
{[%clk 0:00:52.3]} 47... Kh7 {[%clk 0:00:22.7]} 48. Qxh5+ {[%clk 0:00:53.6]}
48... Kg7 {[%clk 0:00:24.6]} 49. Qe5+ {[%clk 0:00:54.7]} 49... Kf8 {[%clk
0:00:25.7]} 50. Qxe4 {[%clk 0:00:55.9]} 1-0